bitfinex/quotes_BTCUSD_20240703
["timestamp","ask_amount","ask_price","bid_price","bid_amount"]
[1720003455180,0.02022575,60294.0,60293.0,0.08015582]
[1720003455623,0.13022575,60294.0,60293.0,0.08015582]
[1720003455801,0.11,60294.0,60293.0,0.08015582]
[1720003456378,0.39122575,60294.0,60293.0,0.08015582]
[1720003457836,0.39122575,60294.0,60283.0,0.08015582]
[1720003457837,0.11,60285.0,60283.0,0.08015582]
[1720003458596,0.11,60294.0,60286.0,0.03977425]
[1720003458800,0.11,60294.0,60293.0,0.08015582]
[1720003459836,0.111,60294.0,60293.0,0.08215582]
[1720003460040,0.11,60294.0,60293.0,0.08015582]
[1720003460445,0.111,60294.0,60293.0,0.08015582]
[1720003461489,0.112,60294.0,60293.0,0.08015582]
[1720003461691,0.1119,60294.0,60293.0,0.08015582]
[1720003462066,0.1109,60294.0,60293.0,0.08015582]
[1720003462603,0.1109,60294.0,60293.0,0.25345462]
[1720003462604,0.0019,60294.0,60293.0,0.25345462]
[1720003462826,0.1118,60294.0,60293.0,0.09315582]
[1720003463033,0.62048075,60294.0,60293.0,0.013]
[1720003463165,0.62048075,60294.0,60276.0,0.08015582]
[1720003463166,0.1099,60281.0,60277.0,0.48093494]
[1720003463369,0.1099,60281.0,60278.0,0.1602988]
[1720003466932,0.1109,60281.0,60278.0,0.1622988]
[1720003467140,0.1099,60280.0,60278.0,0.002]
[1720003467549,0.001,60281.0,60278.0,0.1622988]
[1720003467739,0.001,60281.0,60279.0,0.1602988]
[1720003468296,0.1099,60280.0,60278.0,0.102]
[1720003468549,0.001,60281.0,60280.0,0.03977425]
[1720003468758,0.1099,60289.0,60284.0,0.35227425]
[1720003468898,0.1099,60289.0,60288.0,0.08015582]
[1720003469818,0.0002,60294.0,60288.0,0.08015582]
[1720003470182,0.1099,60289.0,60288.0,0.08015582]
[1720003470384,0.0002,60294.0,60288.0,0.08015582]
[1720003470780,0.1099,60289.0,60288.0,0.08015582]
[1720003471316,0.1099,60293.0,60289.0,0.03977425]
[1720003471672,0.1098,60293.0,60290.0,0.1602988]
[1720003471941,0.0002,60294.0,60288.0,0.08015582]
[1720003471942,0.1098,60290.0,60288.0,0.08015582]
[1720003472348,0.1098,60290.0,60288.0,0.09415582]
[1720003472349,0.001,60289.0,60288.0,0.09415582]
[1720003472857,0.001,60289.0,60288.0,0.09615582]
[1720003473265,0.0009,60289.0,60288.0,0.08615582]
[1720003473418,0.13092575,60289.0,60288.0,0.08415582]
[1720003473624,0.13092575,60289.0,60288.0,0.07215582]
[1720003473625,0.13002575,60289.0,60288.0,0.07215582]
[1720003474190,0.14326833,60289.0,60288.0,0.002]
[1720003474339,0.70452575,60289.0,60288.0,0.002]
[1720003475350,0.70452575,60289.0,60278.0,0.1]
[1720003475351,0.02022575,60285.0,60278.0,0.1]
[1720003475556,0.1098,60280.0,60278.0,0.2602988]
[1720003476543,0.1097,60280.0,60278.0,0.2602988]
[1720003476936,0.1097,60280.0,60278.0,0.2622988]
[1720003477061,0.1096,60280.0,60278.0,0.2622988]
[1720003478045,0.1096,60280.0,60278.0,0.2602988]
[1720003478601,0.1096,60284.0,60279.0,0.1602988]
[1720003478799,0.1096,60284.0,60283.0,0.08015582]
[1720003480302,0.1096,60285.0,60283.0,0.08015582]
[1720003481228,0.1096,60285.0,60278.0,0.1]
[1720003481229,0.1096,60281.0,60278.0,0.1]
[1720003481441,0.001,60280.0,60278.0,0.2742988]
[1720003482267,0.1096,60281.0,60278.0,0.2602988]
[1720003483644,0.12982575,60281.0,60278.0,0.2602988]
[1720003484441,0.1096,60281.0,60278.0,0.2602988]
[1720003485250,0.001,60280.0,60278.0,0.2742988]
[1720003485630,0.1096,60281.0,60278.0,0.2602988]
[1720003485935,0.1106,60281.0,60278.0,0.2742988]
[1720003486135,0.001,60280.0,60278.0,0.2762988]
[1720003486586,0.1106,60281.0,60278.0,0.2742988]
[1720003486587,0.001,60281.0,60278.0,0.2742988]
[1720003486885,0.001,60281.0,60279.0,0.1602988]
[1720003487095,0.002,60281.0,60279.0,0.1602988]
[1720003488943,0.001,60281.0,60279.0,0.1602988]
[1720003489118,0.02122575,60281.0,60279.0,0.1602988]
[1720003489285,0.02122575,60281.0,60278.0,0.102]
[1720003489286,0.02022575,60280.0,60278.0,0.102]
[1720003489486,0.02022575,60280.0,60279.0,0.014]
[1720003490545,0.14448736,60280.0,60279.0,0.014]
[1720003490745,0.39332575,60280.0,60279.0,0.014]
[1720003491405,0.80522575,60280.0,60279.0,0.014]
[1720003491590,1.22934601,60280.0,60279.0,0.014]
[1720003492011,1.22934601,60280.0,60256.0,0.3257]
[1720003492012,0.12982575,60265.0,60258.0,0.03977425]
[1720003492246,0.12982575,60265.0,60262.0,0.1602988]
[1720003492247,0.1096,60265.0,60262.0,0.1602988]
[1720003492864,0.1096,60265.0,60262.0,0.20007305]
[1720003493066,0.1096,60265.0,60262.0,0.1602988]
[1720003493621,0.1096,60265.0,60263.0,0.03977425]
[1720003493899,0.1096,60265.0,60262.0,0.1602988]
[1720003494891,0.2635,60280.0,60267.0,0.03977425]
[1720003494892,0.1096,60275.0,60267.0,0.03977425]
[1720003495092,0.1096,60280.0,60279.0,0.08015582]
[1720003496469,0.1096,60280.0,60272.0,0.08015582]
[1720003496470,0.1096,60279.0,60274.0,0.03977425]
[1720003496670,0.1096,60279.0,60275.0,0.1602988]
[1720003498310,0.1096,60277.0,60272.0,0.08015582]
[1720003498635,0.1096,60277.0,60273.0,0.1602988]
[1720003498836,0.2536,60287.0,60278.0,0.06]
[1720003498837,0.10872195,60287.0,60278.0,0.06]
[1720003499043,0.10872195,60287.0,60279.0,0.08015582]
[1720003499240,0.01642043,60288.0,60279.0,0.08015582]
[1720003499241,0.12426307,60288.0,60286.0,0.08015582]
[1720003499410,0.3319,60289.0,60286.0,0.08015582]
[1720003499411,0.45616307,60289.0,60286.0,0.08015582]
[1720003499607,0.12426307,60289.0,60286.0,0.08015582]
[1720003500019,0.2981,60290.0,60286.0,0.08015582]
[1720003500222,0.2981,60290.0,60287.0,0.1602988]
[1720003500367,0.2981,60290.0,60287.0,0.2202988]
[1720003500575,0.2981,60290.0,60288.0,0.06]
[1720003500776,0.2981,60290.0,60283.0,0.06]
[1720003500978,0.2981,60290.0,60279.0,0.08015582]
[1720003501143,0.12426307,60290.0,60280.0,0.1602988]
[1720003501343,0.3109,60294.0,60280.0,0.1602988]
[1720003501543,0.3109,60294.0,60286.0,0.08015582]
[1720003501544,0.12433983,60290.0,60286.0,0.08015582]
[1720003501743,0.12433983,60289.0,60286.0,0.08015582]
[1720003501947,0.2981,60287.0,60286.0,0.08015582]
[1720003502292,0.2981,60287.0,60279.0,0.08015582]
[1720003502458,0.04324398,60287.0,60278.0,0.002]
[1720003502801,0.12433983,60282.0,60278.0,0.002]
[1720003503020,0.12433983,60281.0,60268.0,0.62109076]
[1720003503214,0.12433983,60281.0,60280.0,0.002]
[1720003503215,0.45353983,60281.0,60280.0,0.002]
[1720003503576,0.3292,60281.0,60280.0,0.002]
[1720003504002,0.3292,60281.0,60268.0,0.24045462]
[1720003504003,0.3292,60281.0,60268.0,0.08015582]
[1720003504209,0.12438298,60277.0,60268.0,0.08015582]
[1720003504527,0.12438113,60277.0,60275.0,0.08015582]
[1720003504735,0.12438113,60279.0,60275.0,0.08015582]
[1720003504929,0.3292,60281.0,60275.0,0.08015582]
[1720003504930,0.12438113,60278.0,60275.0,0.08015582]
[1720003505193,0.12438113,60277.0,60275.0,0.08015582]
[1720003505755,0.12438113,60276.0,60275.0,0.08015582]
[1720003506163,0.12438113,60277.0,60275.0,0.08015582]
[1720003506391,0.12438113,60276.0,60275.0,0.08015582]
[1720003506538,0.3292,60281.0,60268.0,0.08015582]
[1720003506539,0.2579,60279.0,60268.0,0.08015582]
[1720003506733,0.1243899,60275.0,60268.0,0.08015582]
[1720003506963,0.1243899,60274.0,60268.0,0.08015582]
[1720003507247,0.2579,60279.0,60268.0,0.08015582]
[1720003507248,0.1243899,60275.0,60268.0,0.08015582]
[1720003507473,0.12438456,60275.0,60268.0,0.08015582]
[1720003507792,0.2579,60279.0,60268.0,0.08015582]
[1720003507793,0.12438456,60274.0,60268.0,0.08015582]
[1720003507992,0.12438522,60274.0,60261.0,0.08015582]
[1720003508193,0.12438522,60269.0,60261.0,0.24045462]
[1720003508411,0.12438522,60269.0,60268.0,0.002]
[1720003508693,0.14926226,60275.0,60268.0,0.002]
[1720003508694,0.14926226,60273.0,60268.0,0.002]
[1720003508838,0.14926226,60273.0,60261.0,0.08015582]
[1720003509044,0.12438136,60268.0,60261.0,0.08015582]
[1720003509245,0.12438136,60269.0,60261.0,0.08015582]
[1720003509496,0.12438136,60269.0,60268.0,0.08015582]
[1720003509670,0.12438136,60269.0,60268.0,0.08215582]
[1720003509845,0.12438136,60269.0,60268.0,0.08015582]
[1720003510043,0.12438136,60270.0,60268.0,0.08015582]
[1720003510261,0.001,60274.0,60268.0,0.08015582]
[1720003510262,0.12438136,60272.0,60268.0,0.08015582]
[1720003510463,0.12434407,60273.0,60268.0,0.08015582]
[1720003510660,0.001,60274.0,60268.0,0.08015582]
[1720003510863,0.12432752,60273.0,60268.0,0.08015582]
[1720003511721,0.001,60273.0,60268.0,0.08215582]
[1720003511883,0.2386,60269.0,60268.0,0.08415582]
[1720003512076,0.2386,60269.0,60268.0,0.14415582]
[1720003512283,0.002,60273.0,60272.0,0.06]
[1720003512478,0.002,60273.0,60272.0,0.2419]
[1720003512479,0.001,60273.0,60272.0,0.2419]
[1720003512725,0.001,60273.0,60272.0,0.3019]
[1720003513112,0.001,60273.0,60272.0,0.4621988]
[1720003514110,0.12428243,60285.0,60273.0,0.06]
[1720003514314,0.12428243,60284.0,60278.0,0.08015582]
[1720003514513,0.12428243,60284.0,60275.0,0.08015582]
[1720003514720,0.2386,60279.0,60275.0,0.08015582]
[1720003516088,0.001,60273.0,60272.0,0.002]
[1720003516337,0.001,60273.0,60269.0,0.06]
[1720003516537,0.001,60273.0,60270.0,0.1602988]
[1720003516905,0.001,60273.0,60270.0,0.2202988]
[1720003517282,0.001,60285.0,60271.0,0.06]
[1720003517401,0.001,60285.0,60280.0,0.08015582]
[1720003517843,0.001,60285.0,60272.0,0.002]
[1720003518061,0.03166826,60284.0,60275.0,0.08015582]
[1720003518226,0.01568264,60288.0,60275.0,0.08015582]
[1720003518560,0.771439,60287.0,60275.0,0.08015582]
[1720003518703,0.001,60279.0,60275.0,0.08215582]
[1720003519147,0.001,60279.0,60275.0,0.08015582]
[1720003519358,0.3,60286.0,60275.0,0.08015582]
[1720003519569,1.72440368,60285.0,60268.0,0.08015582]
[1720003519729,0.12436541,60278.0,60268.0,0.08015582]
[1720003519917,0.79278868,60285.0,60268.0,0.08015582]
[1720003519918,0.12437034,60275.0,60268.0,0.08015582]
[1720003520150,0.79278868,60285.0,60268.0,0.08015582]
[1720003520151,0.12437034,60278.0,60268.0,0.08015582]
[1720003520351,0.001,60273.0,60270.0,0.002]
[1720003520611,0.13680483,60277.0,60268.0,0.08015582]
[1720003520788,0.1243678,60276.0,60268.0,0.08015582]
[1720003521191,0.1243678,60276.0,60275.0,0.002]
[1720003521592,0.3071,60274.0,60263.0,0.4772]
[1720003521944,0.3071,60274.0,60268.0,0.08015582]
[1720003522481,0.3071,60274.0,60268.0,0.08215582]
[1720003522717,0.50083828,60274.0,60268.0,0.002]
[1720003522967,0.50083828,60274.0,60261.0,0.08015582]
[1720003522968,0.1243678,60271.0,60261.0,0.08015582]
[1720003523152,0.3071,60274.0,60261.0,0.08015582]
[1720003523153,0.12438966,60269.0,60261.0,0.08015582]
[1720003523375,0.45636759,60274.0,60261.0,0.08015582]
[1720003523376,0.12438966,60268.0,60261.0,0.08015582]
[1720003523548,0.07175784,60273.0,60261.0,0.08015582]
[1720003523722,0.3071,60274.0,60268.0,0.08015582]
[1720003523723,0.12438045,60270.0,60268.0,0.08015582]
[1720003523923,0.12438045,60271.0,60268.0,0.08015582]
[1720003524324,0.5855,60270.0,60263.0,0.002]
[1720003524507,0.12438045,60268.0,60263.0,0.002]
[1720003524690,0.12438045,60267.0,60263.0,0.002]
[1720003524888,0.17212794,60267.0,60263.0,0.002]
[1720003525762,0.12438045,60267.0,60263.0,0.002]
[1720003525972,0.2386,60264.0,60249.0,0.009185]
[1720003526274,0.00167594,60263.0,60261.0,0.002]
[1720003526489,0.36297328,60262.0,60261.0,0.08215582]
[1720003526675,0.2386,60262.0,60261.0,0.08215582]
[1720003527261,0.12437328,60264.0,60261.0,0.08215582]
[1720003527438,0.12437328,60267.0,60261.0,0.08215582]
[1720003528358,0.12437328,60267.0,60261.0,0.08015582]
[1720003528758,0.001,60262.0,60261.0,0.08015582]
[1720003529180,0.2523,60270.0,60261.0,0.08107982]
[1720003529383,0.2386,60262.0,60261.0,0.08107982]
[1720003532304,0.67473971,60262.0,60261.0,0.000924]
[1720003532510,0.64797397,60262.0,60261.0,0.000924]
[1720003532938,0.5504,60262.0,60261.0,0.000924]
[1720003533252,0.5504,60262.0,60261.0,0.002924]
[1720003533253,0.5514,60262.0,60261.0,0.002924]
[1720003533724,0.81850971,60262.0,60261.0,0.002924]
[1720003533928,0.9770988,60262.0,60261.0,0.002924]
[1720003534128,0.97880851,60262.0,60261.0,0.002924]
[1720003534349,1.13917157,60262.0,60261.0,0.002924]
[1720003534548,1.13746186,60262.0,60261.0,0.002924]
[1720003534683,0.9770988,60262.0,60261.0,0.002924]
[1720003534887,0.8168,60262.0,60261.0,0.002924]
[1720003535154,0.2396,60262.0,60261.0,0.002924]
[1720003536083,0.2406,60262.0,60261.0,0.002924]
[1720003537086,0.01641443,60263.0,60261.0,0.002924]
[1720003537287,0.0475011,60265.0,60262.0,0.08015582]
[1720003537695,0.2545,60269.0,60262.0,0.08015582]
[1720003537847,0.4545,60269.0,60262.0,0.08015582]
[1720003538231,0.47100478,60269.0,60262.0,0.08015582]
[1720003538441,0.00084,60275.0,60267.0,0.48093494]
[1720003538641,0.00084,60275.0,60274.0,0.70195582]
[1720003538871,0.00084,60275.0,60274.0,0.86225462]
[1720003539071,0.23944,60275.0,60274.0,0.80225462]
[1720003539343,0.23944,60275.0,60274.0,0.08015582]
[1720003539889,0.00084,60275.0,60274.0,0.08015582]
[1720003540087,0.00084,60275.0,60274.0,0.24045462]
[1720003541683,0.00084,60275.0,60269.0,0.08015582]
[1720003541684,0.26624,60275.0,60269.0,0.08015582]
[1720003541847,0.325444,60275.0,60274.0,0.014]
[1720003542247,0.324444,60275.0,60269.0,0.08015582]
[1720003542603,0.324444,60275.0,60274.0,0.028]
[1720003542604,0.326444,60275.0,60274.0,0.028]
[1720003542756,0.26824,60275.0,60274.0,0.028]
[1720003542930,0.26724,60275.0,60274.0,0.014]
[1720003543965,0.26724,60275.0,60274.0,0.028]
[1720003544350,0.39147347,60275.0,60274.0,0.028]
[1720003544564,0.39047612,60275.0,60274.0,0.014]
[1720003544804,0.26624,60275.0,60274.0,0.014]
[1720003544990,0.26624,60275.0,60274.0,0.028]
[1720003545144,0.29914,60275.0,60274.0,0.028]
[1720003545348,0.29914,60275.0,60274.0,0.014]
[1720003545753,0.29914,60275.0,60274.0,0.028]
[1720003546183,0.29914,60275.0,60274.0,0.10815582]
[1720003547611,0.29914,60275.0,60274.0,0.26845462]
[1720003548012,0.29914,60275.0,60274.0,0.25445462]
[1720003548424,0.29914,60275.0,60274.0,0.24045462]
[1720003548621,0.30014,60275.0,60274.0,0.25445462]
[1720003549672,0.30114,60275.0,60274.0,0.028]
[1720003550132,0.30014,60275.0,60274.0,0.014]
[1720003551754,0.30014,60275.0,60263.0,0.3045]
[1720003551755,0.29914,60275.0,60263.0,0.3045]
[1720003551940,0.00084,60275.0,60269.0,0.08015582]
[1720003552283,0.00184,60275.0,60274.0,0.01216373]
[1720003552655,0.00284,60275.0,60274.0,0.02616373]
[1720003552864,0.12609413,60275.0,60274.0,0.014]
[1720003552984,0.12509413,60275.0,60269.0,0.08015582]
[1720003553388,0.00184,60275.0,60269.0,0.08015582]
[1720003553703,0.30114,60275.0,60274.0,0.014]
[1720003553886,0.30014,60275.0,60274.0,0.014]
[1720003554326,0.30114,60275.0,60274.0,0.014]
[1720003555479,0.00284,60275.0,60274.0,0.014]
[1720003555705,0.00184,60275.0,60269.0,0.09415582]
[1720003556187,0.00184,60275.0,60269.0,0.10815582]
[1720003556331,0.00084,60275.0,60269.0,0.08015582]
[1720003556534,0.00084,60275.0,60274.0,0.014]
[1720003556951,0.00084,60275.0,60269.0,0.08015582]
[1720003557574,0.2983,60270.0,60264.0,0.1602988]
[1720003557794,0.2983,60270.0,60269.0,0.08015582]
[1720003558359,0.2983,60270.0,60269.0,0.09415582]
[1720003558948,0.2983,60270.0,60269.0,0.10815582]
[1720003559141,0.2983,60270.0,60269.0,0.09415582]
[1720003559675,0.2983,60270.0,60269.0,0.10815582]
[1720003559821,0.2983,60270.0,60269.0,0.09415582]
[1720003560233,0.2993,60270.0,60265.0,0.06]
[1720003560638,0.2993,60270.0,60269.0,0.08015582]
[1720003560847,0.2993,60270.0,60269.0,0.14015582]
[1720003561053,0.2993,60270.0,60269.0,0.08015582]
[1720003561248,0.00084,60275.0,60270.0,0.06]
[1720003561578,0.00084,60275.0,60269.0,0.08015582]
[1720003561579,0.00084,60275.0,60272.0,0.06]
[1720003561714,0.2386,60273.0,60272.0,0.06]
[1720003562357,0.2386,60273.0,60272.0,0.3071]
[1720003562755,0.00084,60275.0,60274.0,0.06]
[1720003563177,0.00084,60275.0,60274.0,0.5419988]
[1720003566827,0.00184,60275.0,60274.0,0.5529988]
[1720003567237,0.00284,60275.0,60274.0,1.4404988]
[1720003567458,0.00284,60275.0,60274.0,1.1404988]
[1720003567944,0.00184,60275.0,60274.0,1.1294988]
[1720003568203,0.00184,60275.0,60274.0,1.0994988]
[1720003568403,0.00284,60275.0,60274.0,0.8104988]
[1720003568595,0.00284,60275.0,60274.0,0.7994988]
[1720003568596,0.00184,60275.0,60274.0,0.7994988]
[1720003569975,0.0004,60294.0,60293.0,0.06]
[1720003570272,0.0004,60294.0,60293.0,0.2202988]
[1720003570618,0.0004,60294.0,60293.0,0.30377158]
[1720003570827,0.0004,60294.0,60293.0,0.33377158]
[1720003571027,0.0004,60294.0,60293.0,0.30377158]
[1720003571231,0.0004,60294.0,60293.0,0.30045462]
[1720003571884,0.0004,60294.0,60288.0,0.07647942]
[1720003571885,0.239,60294.0,60288.0,0.07647942]
[1720003572189,0.0004,60294.0,60288.0,0.01647942]
[1720003572718,0.2386,60290.0,60289.0,0.2202988]
[1720003573731,0.0004,60294.0,60289.0,0.2202988]
[1720003574202,0.0004,60294.0,60291.0,0.06]
[1720003574356,0.0004,60294.0,60292.0,0.1602988]
[1720003575272,0.0014,60294.0,60292.0,0.1602988]
[1720003575763,0.0004,60294.0,60293.0,0.06]
[1720003575993,0.0004,60294.0,60293.0,0.4724988]
[1720003576196,0.0014,60294.0,60293.0,0.4724988]
[1720003576393,0.0014,60294.0,60293.0,0.7906988]
[1720003577324,0.0004,60294.0,60293.0,0.5384988]
[1720003577865,0.0004,60294.0,60292.0,0.014]
[1720003578072,0.0004,60294.0,60292.0,0.1742988]
[1720003578457,0.05773,60294.0,60292.0,0.014]
[1720003578847,0.0004,60294.0,60292.0,0.014]
[1720003579012,0.0004,60294.0,60293.0,0.09415582]
[1720003579333,0.0004,60294.0,60293.0,0.014]
[1720003579703,0.0004,60294.0,60293.0,0.028]
[1720003580465,0.0004,60294.0,60293.0,0.014]
[1720003581284,0.0004,60294.0,60293.0,0.028]
[1720003583096,0.05940034,60294.0,60293.0,0.028]
[1720003583323,0.05940034,60294.0,60293.0,0.014]
[1720003583675,1.58112934,60294.0,60293.0,0.014]
[1720003583960,2.02594914,60294.0,60293.0,0.014]
[1720003584725,1.63571814,60294.0,60275.0,0.06]
[1720003584925,1.63571814,60294.0,60280.0,0.48093494]
[1720003584926,0.81578406,60293.0,60280.0,0.48093494]
[1720003585169,1.00759914,60294.0,60286.0,0.48093494]
[1720003585170,0.588444,60292.0,60286.0,0.48093494]
[1720003585365,0.0004,60294.0,60292.0,0.08015582]
[1720003586364,0.298,60293.0,60292.0,0.08015582]
[1720003586534,0.0004,60294.0,60292.0,0.08015582]
[1720003587480,0.0004,60294.0,60293.0,0.014]
[1720003587718,0.0004,60294.0,60293.0,0.074]
[1720003587901,0.0004,60294.0,60293.0,0.06]
[1720003588103,0.0004,60294.0,60293.0,0.2202988]
[1720003588642,0.0004,60294.0,60293.0,0.2342988]
[1720003589140,0.0004,60294.0,60293.0,0.014]
[1720003589541,0.0004,60294.0,60293.0,0.15415582]
[1720003589747,0.0004,60294.0,60293.0,0.014]
[1720003591542,0.0004,60294.0,60293.0,0.028]
[1720003596288,0.00124,60294.0,60293.0,0.028]
[1720003598285,0.396514,60294.0,60279.0,0.06]
[1720003598491,0.00124,60294.0,60281.0,0.06]
[1720003598685,0.00124,60294.0,60279.0,0.2202988]
[1720003598887,0.00124,60294.0,60281.0,0.06]
[1720003599063,0.00124,60294.0,60280.0,0.06]
[1720003599705,0.00124,60294.0,60279.0,0.1602988]
[1720003600296,0.12534718,60294.0,60279.0,0.2482988]
[1720003600474,0.06970212,60293.0,60279.0,0.2482988]
[1720003600896,0.06970212,60293.0,60279.0,0.2342988]
[1720003601083,0.06970212,60293.0,60282.0,0.06]
[1720003601281,0.12534718,60294.0,60280.0,0.074]
[1720003601502,0.12534718,60294.0,60280.0,0.06]
[1720003601668,0.12534718,60294.0,60283.0,0.08015582]
[1720003602064,0.00224,60294.0,60283.0,0.08015582]
[1720003603265,0.00224,60294.0,60284.0,0.06]
[1720003603490,0.00324,60294.0,60285.0,0.06]
[1720003603703,0.00324,60294.0,60284.0,0.06]
[1720003603704,0.00224,60294.0,60284.0,0.06]
[1720003603884,0.1274777,60294.0,60290.0,0.08015582]
[1720003604093,0.00324,60294.0,60290.0,0.08015582]
[1720003604348,0.00224,60294.0,60290.0,0.08015582]
[1720003604479,0.00124,60294.0,60290.0,0.08015582]
[1720003604723,0.00224,60294.0,60290.0,0.08015582]
[1720003604923,0.2384,60291.0,60290.0,0.08015582]
[1720003605569,0.2384,60291.0,60286.0,0.06]
[1720003605779,0.2384,60291.0,60290.0,0.66255582]
[1720003606004,0.00224,60294.0,60290.0,0.72255582]
[1720003606187,0.00224,60294.0,60292.0,0.06]
[1720003606384,0.00224,60294.0,60293.0,0.06]
[1720003607190,0.00324,60294.0,60293.0,0.06]
[1720003607720,0.00224,60294.0,60293.0,0.06]
[1720003607859,0.00324,60294.0,60293.0,0.071]
[1720003608063,0.00224,60294.0,60293.0,0.071]
[1720003608520,0.00124,60294.0,60293.0,0.06]
[1720003608747,0.12430291,60303.0,60302.0,0.06]
[1720003608978,0.12430291,60308.0,60307.0,0.06]
[1720003609248,0.12430291,60317.0,60311.0,0.06]
[1720003609742,0.2,60324.0,60310.0,0.06]
[1720003609743,0.12430291,60318.0,60310.0,0.06]
[1720003609960,0.12430291,60318.0,60311.0,0.06]
[1720003610186,0.12430291,60319.0,60311.0,0.06]
[1720003610479,0.19749855,60327.0,60321.0,0.06]
[1720003610480,0.12430291,60322.0,60321.0,0.06]
[1720003610677,0.78653494,60346.0,60326.0,0.06]
[1720003610901,0.01641421,60338.0,60328.0,0.06]
[1720003611263,0.01641421,60338.0,60328.0,0.2202988]
[1720003611496,0.1405897,60338.0,60329.0,0.30045462]
[1720003611734,0.2384,60332.0,60330.0,0.06]
[1720003611971,0.2384,60332.0,60331.0,0.1602988]
[1720003612435,0.2384,60332.0,60331.0,0.2202988]
[1720003612706,0.2384,60332.0,60331.0,0.1602988]
[1720003612928,0.2384,60332.0,60331.0,0.23677822]
[1720003615206,0.00836,60336.0,60331.0,0.23677822]
[1720003615408,0.00836,60336.0,60334.0,0.06]
[1720003616927,0.00936,60336.0,60334.0,0.011]
[1720003617127,0.2384,60335.0,60334.0,0.011]
[1720003618923,0.2384,60335.0,60331.0,0.014]
[1720003619126,0.588176,60334.0,60331.0,0.014]
[1720003619926,0.2509,60334.0,60331.0,0.014]
[1720003620136,0.2394,60335.0,60331.0,0.014]
[1720003620137,0.2384,60335.0,60331.0,0.014]
[1720003620534,0.001,60334.0,60331.0,0.025]
[1720003620845,0.001,60334.0,60331.0,0.011]
[1720003621651,0.02385731,60334.0,60331.0,0.011]
[1720003621852,0.001,60334.0,60331.0,0.011]
[1720003622615,0.001,60334.0,60331.0,0.025]
[1720003623023,0.00836,60336.0,60314.0,0.06]
[1720003623024,0.2384,60332.0,60314.0,0.06]
[1720003623223,0.30836,60336.0,60313.0,0.39765582]
[1720003623224,0.474969,60331.0,60321.0,0.08015582]
[1720003623338,0.00836,60336.0,60317.0,0.1602988]
[1720003623550,0.5795,60334.0,60331.0,0.01]
[1720003623776,0.1602988,60333.0,60331.0,0.01]
[1720003623988,0.5795,60334.0,60331.0,0.01]
[1720003624188,0.28270623,60334.0,60321.0,0.08015582]
[1720003624410,0.28270623,60334.0,60328.0,0.08015582]
[1720003624651,0.001,60331.0,60328.0,0.08015582]
[1720003624847,0.001,60331.0,60329.0,0.06]
[1720003625082,0.001,60331.0,60328.0,0.24045462]
[1720003625334,0.001,60331.0,60328.0,0.30045462]
[1720003625756,0.001,60331.0,60330.0,0.06]
[1720003627566,0.001,60334.0,60333.0,0.06]
[1720003628310,0.002,60334.0,60333.0,0.06]
[1720003628518,0.002,60334.0,60328.0,0.24045462]
[1720003628519,0.002,60334.0,60332.0,0.06]
[1720003628851,0.001,60334.0,60332.0,0.06]
[1720003629249,0.001,60334.0,60333.0,0.06]
[1720003629488,0.00836,60336.0,60334.0,0.06]
[1720003629690,0.00836,60336.0,60335.0,0.06]
[1720003630032,0.00836,60336.0,60332.0,0.1602988]
[1720003630441,0.00836,60336.0,60327.0,0.2461]
[1720003630605,0.001,60334.0,60328.0,0.1602988]
[1720003631012,0.002,60334.0,60328.0,0.1602988]
[1720003631210,0.002,60334.0,60332.0,0.000913]
[1720003631424,0.002,60334.0,60333.0,0.08015582]
[1720003631624,0.00283,60334.0,60333.0,0.08015582]
[1720003631972,0.00183,60334.0,60333.0,0.08015582]
[1720003632105,0.00283,60334.0,60333.0,0.14015582]
[1720003632926,0.00283,60334.0,60333.0,0.45385582]
[1720003633133,0.00183,60334.0,60333.0,0.45385582]
[1720003633609,0.00183,60334.0,60332.0,0.060913]
[1720003633830,0.00183,60334.0,60332.0,0.000913]
[1720003634030,0.00083,60334.0,60332.0,0.000913]
[1720003634787,0.00183,60334.0,60333.0,0.06]
[1720003634996,0.00183,60334.0,60332.0,0.060913]
[1720003635390,0.00083,60334.0,60332.0,0.060913]
[1720003635617,0.00283,60334.0,60333.0,0.2542]
[1720003635739,0.00283,60334.0,60333.0,0.3142]
[1720003636401,0.00283,60334.0,60333.0,0.4744988]
[1720003636809,0.00183,60334.0,60333.0,0.4744988]
[1720003637987,0.00183,60334.0,60333.0,0.8023988]
[1720003638556,0.00283,60334.0,60333.0,0.8023988]
[1720003639103,0.00183,60334.0,60333.0,0.8023988]
[1720003639705,0.00283,60334.0,60333.0,0.8323988]
[1720003639904,0.00183,60334.0,60333.0,0.94023569]
[1720003640113,0.00183,60334.0,60333.0,0.97023569]
[1720003640314,0.00283,60334.0,60333.0,0.94923569]
[1720003640501,0.00183,60334.0,60333.0,0.8023988]
[1720003640696,0.24023,60334.0,60333.0,0.94023459]
[1720003641033,0.24023,60334.0,60333.0,0.94923563]
[1720003641034,0.24123,60334.0,60333.0,0.94923563]
[1720003641233,0.24123,60334.0,60333.0,0.97923563]
[1720003641581,0.00183,60334.0,60333.0,1.27023563]
[1720003641780,0.00183,60334.0,60333.0,1.57023563]
[1720003642118,0.00183,60334.0,60333.0,1.4323988]
[1720003642119,0.00083,60334.0,60333.0,1.4323988]
[1720003642319,0.00083,60334.0,60333.0,1.57020948]
[1720003642866,0.00183,60334.0,60333.0,1.58320948]
[1720003643544,0.00183,60334.0,60333.0,1.57020759]
[1720003643724,0.00083,60334.0,60333.0,1.57020758]
[1720003643924,0.00083,60334.0,60333.0,1.4463988]
[1720003644153,0.00083,60334.0,60333.0,1.26820725]
[1720003644330,0.00083,60334.0,60333.0,0.96820725]
[1720003644531,0.00083,60334.0,60333.0,0.95420725]
[1720003644930,0.00083,60334.0,60333.0,0.8303988]